[Event "AUT Bundesliga 2024-25"]
[Site "Austria"]
[Date "2025.04.05"]
[Round "10.16"]
[White "Hracek, Zbynek"]
[Black "Sankalp Gupta"]
[Result "1/2-1/2"]
[Annotator "TA"]
[ECO "B12"]
[WhiteElo "2538"]
[BlackElo "2548"]
[PlyCount "45"]
[EventDate "2024.08.28"]
[EventType "team-tourn"]
[EventCountry "AUT"]
[SourceTitle "playchess.com"]
[Source "ChessBase"]
[SourceQuality "1"]
[TimeControl "40/5400+30:1800+30"]

{[%evp 12,45,22,4,29,24,47,23,27,31,37,28,74,56,76,66,54,33,31,8,14,0,0,0,0,0,0,0,0,0,0,0,0,0,0,0]} 1. e4 {[%emt 0:00:03]} c6 {[%emt 0:00:23]} 2. d4 {[%emt 0:00:11]} d5 {[%emt 0:00:02]} 3. e5 {[%emt 0:00:11]} c5 {[%emt 0:00:08]} 4. c3 {[%emt 0:00:06]} Nc6 {[%emt 0:00:07]} 5. Be2 {[%emt 0:00:05]} Bf5 {[%emt 0:07:50]} 6. Nf3 {[%emt 0:00:31]} e6 {[%emt 0:00:21]} 7. O-O {[%emt 0:00:26]} a6 {[%emt 0:05:59] B12: Caro-Kann: Advance Variation.} 8. Be3 {[%emt 0:03:03]} Qb6 {[%emt 0:03:32]} 9. Nh4 {[%emt 0:03:22]} Nge7 $146 {[%emt 0:07:59] White has an edge.} (9... Be4 10. Nd2 Be7 11. f3 cxd4 12. cxd4 Bg6 13. Nxg6 hxg6 14. Qb3 Bd8 15. f4 Nge7 {½-½ Lagarde,M (2629)-Donchenko,A (2664) EU-chT 24th Budva 2023 (8.4)}) 10. Qd2 {[%emt 0:12:23]} cxd4 {[%emt 0:14:05]} 11. cxd4 {[%emt 0:00:06]} Bxb1 {[%emt 0:01:10]} (11... h6 $11) 12. Raxb1 $16 {[%emt 0:02:43]} Ng6 {[%emt 0:00:06]} 13. Nxg6 {[%emt 0:07:43]} hxg6 {[%emt 0:00:03]} 14. b4 {[%emt 0:09:13]} Bxb4 {[%emt 0:11:04]} 15. Qb2 {[%emt 0:00:14] [#] and a3 should not be overlooked} Qa5 {[%emt 0:04:14] The position is equal.} 16. Rfc1 {[%emt 0:01:23][%cal Oc1c6]} (16. a3 {simplifies} Qxa3 17. Qxa3 Bxa3 18. Rxb7 O-O 19. Ra1) 16... O-O {[%emt 0:05:37] ...Ba3 would now be deadly.} 17. Rxc6 $1 {[%emt 0:02:35]} bxc6 {[%emt 0:00:07]} 18. Qxb4 {[%emt 0:00:03]} Qxa2 {[%emt 0:00:55]} 19. Rb2 {[%emt 0:04:22]} Qa1+ {[%emt 0:00:13]} 20. Rb1 {[%emt 0:00:02]} Qa2 {[%emt 0:00:09]} 21. Rb2 {[%emt 0:00:02]} Qa1+ {[%emt 0:00:13]} 22. Rb1 {[%emt 0:00:14]} Qa2 {[%emt 0:00:07]} 23. Rb2 {[%emt 0:00:04] Weighted Error Value: White=0.08 (flawless) /Black=0.09 (flawless)   Mistake:       	---       	Black=1      OK:         	White=3     	Black=8      Best:        	White=2     	---        Strong:       	White=1     	---} 1/2-1/2

[Event "AUT Bundesliga 2024-25"]
[Site "Austria"]
[Date "2025.04.05"]
[Round "10.17"]
[White "Perunovic, Milos"]
[Black "Stalmach, Richard"]
[Result "*"]
[Annotator "TA"]
[ECO "B90"]
[WhiteElo "2501"]
[BlackElo "2427"]
[PlyCount "43"]
[EventDate "2024.08.28"]
[EventType "team-tourn"]
[EventCountry "AUT"]
[SourceTitle "playchess.com"]
[Source "ChessBase"]
[SourceQuality "1"]
[TimeControl "40/5400+30:1800+30"]

{[%evp 13,43,25,28,9,5,0,-11,-8,-33,-28,-27,-46,-32,-43,-18,-24,-13,-42,-17,-44,0,-37,-29,-34,0,-33,-35,-14,0,-23,-23,-82]} 1. e4 {[%emt 0:00:21]} c5 {[%emt 0:00:05]} 2. Nf3 {[%emt 0:00:31]} d6 {[%emt 0:00:06]} 3. d4 {[%emt 0:00:34]} cxd4 {[%emt 1:31:49]} 4. Nxd4 {[%emt 0:00:09]} Nf6 {[%emt 0:00:05]} 5. Nc3 {[%emt 0:00:59]} a6 {[%emt 0:00:05]} 6. Be3 {[%emt 1:30:56]} e5 {[%emt 0:00:08]} 7. Nb3 {[%emt 0:04:20]} Be6 {[%emt 0:00:17]} 8. h3 {[%emt 0:01:44] B90: Sicilian Najdorf: Unusual White 6th moves, 6 Be3 Ng4 and 6 Be3 e5.} Be7 {[%emt 0:00:05]} 9. Qf3 {[%emt 0:02:42]} O-O {[%emt 0:00:13]} 10. O-O-O {[%emt 0:03:59] The position is equal.} b5 {[%emt 0:00:16]} 11. g4 {[%emt 0:00:40]} b4 {[%emt 0:00:13]} 12. Nd5 {[%emt 0:00:13]} a5 {[%emt 0:00:06]} 13. Kb1 {[%emt 0:11:13]} a4 {[%emt 0:01:45]} 14. Nd2 {[%emt 0:00:40] A sharp opening} Nxd5 {[%emt 0:00:09]} (14... Na6 $5) 15. exd5 {[%emt 0:00:02]} Bc8 {[%emt 0:00:06]} 16. Bd3 {[%emt 0:06:49]} Nd7 {[%emt 0:00:19]} 17. g5 {[%emt 0:08:28]} Qc7 {[%emt 0:03:16]} (17... Bxg5 $2 {loses.} 18. Qf5 Nf6 19. Qxg5 $18) 18. Rhg1 {[%emt 0:13:59]} Ba6 {[%emt 0:11:40]} 19. Bxa6 {[%emt 0:12:22]} Rxa6 {[%emt 0:00:07]} 20. Qe2 {[%emt 0:00:30]} Raa8 {[%emt 0:08:51]} 21. Ne4 $146 {[%emt 0:05:50]} (21. Qc4 Qxc4 22. Nxc4 f5 23. gxf6 Nxf6 24. f4 exf4 25. Bxf4 Ne4 26. Be3 Bf6 27. Bd4 {½-½ Michalek,M (2477)-Andriuschenko,N (2417) W-ch39 sf01 email 2015}) 21... Rfc8 {[%emt 0:02:05][%cal Ob4b3] Mistake:       	White=1     	---        Inaccurate:     	White=4     	Black=2      OK:         	White=5     	Black=5} 22. Qd3 {[%emt 0:01:39] Weighted Error Value: White=0.12 (very precise) /Black=0.12 (very precise)} (22. Rd2 $11) *

[Event "AUT Bundesliga 2024-25"]
[Site "Austria"]
[Date "2025.04.05"]
[Round "10.18"]
[White "Haba, Petr"]
[Black "Ivanisevic, Ivan"]
[Result "*"]
[Annotator "TA"]
[ECO "C45"]
[WhiteElo "2413"]
[BlackElo "2527"]
[PlyCount "43"]
[EventDate "2024.08.28"]
[EventType "team-tourn"]
[EventCountry "AUT"]
[SourceTitle "playchess.com"]
[Source "ChessBase"]
[SourceQuality "1"]
[TimeControl "40/5400+30:1800+30"]

{[%evp 10,43,-14,-20,18,19,25,3,50,0,0,0,0,0,0,0,0,-20,-16,-20,-14,-54,-10,-36,0,-28,-4,-21,27,20,18,31,52,33,45,42]} 1. e4 {[%emt 0:00:19]} e5 {[%emt 0:00:07]} 2. Nf3 {[%emt 0:00:16]} Nc6 {[%emt 0:00:07]} 3. d4 {[%emt 0:00:31]} exd4 {[%emt 0:00:08]} 4. Nxd4 {[%emt 0:00:05]} Bc5 {[%emt 0:01:59]} 5. Nb3 {[%emt 0:00:24]} Bb6 {[%emt 0:00:08]} 6. Nc3 {[%emt 0:00:22]} a5 {[%emt 0:00:09] 6...d6 gains popularity. C45: Scotch Game.} 7. Bb5 {[%emt 0:00:18]} Nf6 {[%emt 0:00:21]} 8. Bg5 {[%emt 0:02:30]} a4 $146 {[%emt 0:00:52]} (8... h6 9. Bh4 O-O 10. O-O d6 11. Bxc6 bxc6 12. Nd4 Bd7 13. Qd3 Qe7 14. Rfe1 Qe5 15. Nf3 {1-0 Preotu,R (2488)-Vrolijk,L (2408) Titled Tuesday intern op 2nd Jan blitz 2018 (6)}) 9. Bxa4 {[%emt 0:12:19]} ({Don't play} 9. Nxa4 Bxf2+ 10. Kf1 h6 $17) (9. Nd2 $1 $14) 9... Rxa4 $11 {[%emt 0:01:39]} 10. Nxa4 {[%emt 0:00:07]} Bxf2+ {[%emt 0:00:04]} 11. Kxf2 {[%emt 0:00:03]} Nxe4+ {[%emt 0:00:09]} 12. Kg1 {[%emt 0:00:35]} Nxg5 {[%emt 0:00:33]} 13. Qe1+ {[%emt 0:04:26]} (13. h4 $5 Ne6 $8 14. Nac5 $11) 13... Ne6 {[%emt 0:00:20][%mdl 1024] Black has compensation.} 14. h3 {[%emt 0:02:05]} O-O {[%emt 1:30:54]} 15. Kh2 {[%emt 0:01:01]} d6 {[%emt 0:04:10]} 16. Rf1 {[%emt 1:13:09]} Bd7 {[%emt 0:11:42]} (16... f5 $5) 17. Nc3 {[%emt 0:01:21]} Ne5 {[%emt 0:01:44]} 18. Rd1 {[%emt 0:04:41]} Ng5 {[%emt 0:14:38]} (18... Nc4 {should be considered.}) 19. Qg3 {[%emt 0:18:33]} h6 {[%emt 0:01:26] [#]} 20. Nc5 $1 {[%emt 0:08:05][%cal Bb3c5,Bc5d3,Bd3f4][%mdl 32]} Bc8 {[%emt 0:10:43]} (20... Bc6 21. Nd3) 21. Nd3 {[%emt 0:03:04]} Ng6 {[%emt 0:06:38] Mistake:       	White=1     	Black=2      Inaccurate:     	White=2     	Black=1      OK:         	White=4     	Black=4      Best:        	---       	Black=1} 22. Nf4 {[%emt 0:01:38] Weighted Error Value: White=0.13 (very precise) /Black=0.19 (very precise)} *

[Event "AUT Bundesliga 2024-25"]
[Site "Austria"]
[Date "2025.04.05"]
[Round "10.19"]
[White "Nisipeanu, Liviu-Dieter"]
[Black "Karthik Venkataraman"]
[Result "*"]
[Annotator "TA"]
[ECO "B52"]
[WhiteElo "2579"]
[BlackElo "2565"]
[PlyCount "35"]
[EventDate "2024.08.28"]
[EventType "team-tourn"]
[EventCountry "AUT"]
[SourceTitle "playchess.com"]
[Source "ChessBase"]
[SourceQuality "1"]
[TimeControl "40/5400+30:1800+30"]

{[%evp 9,35,9,39,35,16,10,25,7,6,5,11,8,1,0,0,0,12,-2,-2,-38,41,37,41,38,37,37,49,42]} 1. e4 {[%emt 0:00:04]} c5 {[%emt 0:00:07]} 2. Nf3 {[%emt 0:00:06]} d6 {[%emt 0:00:04]} 3. Bb5+ {[%emt 0:00:08]} Bd7 {[%emt 0:00:05]} 4. c4 {[%emt 0:00:08]} Nf6 {[%emt 0:00:19]} 5. Nc3 {[%emt 1:32:34]} g6 {[%emt 0:00:50]} 6. d4 {[%emt 0:01:09] B52: Sicilian: Moscow Variation with 3...Bd7.} cxd4 {[%emt 0:00:07]} 7. Nxd4 {[%emt 0:00:06]} Nc6 {[%emt 0:00:29]} 8. h3 {[%emt 0:05:03] White has an edge.} Nxd4 {[%emt 0:00:13] is more profitable than 8...Bg7 at the moment.} 9. Bxd7+ {[%emt 0:02:25]} Qxd7 {[%emt 0:00:07]} 10. Qxd4 {[%emt 0:00:04]} Bg7 {[%emt 0:00:07]} 11. O-O {[%emt 0:07:32]} O-O {[%emt 1:33:32][%cal Of6g4]} 12. Qd3 {[%emt 0:00:06]} Qc6 {[%emt 0:10:19]} 13. Bd2 {[%emt 0:10:34]} Nd7 {[%emt 0:06:27]} 14. Qe2 $5 $146 {[%emt 0:07:56][%mdl 8] New and interesting.} (14. Nd5 $5 Rfe8 15. Bc3 $15) (14. b3 Nc5 15. Qe3 Bxc3 16. Bxc3 Qxe4 17. Qh6 e5 18. Rad1 Ne6 19. f3 Qf5 20. Rxd6 {½-½ Deac,B (2700)-Warmerdam,M (2638) EU-chT 24th Budva 2023 (4.2)}) 14... e6 {[%emt 0:02:06]} ({Better is} 14... Rfc8 $15) 15. Rac1 $14 {[%emt 0:02:42] White is slightly better.} a6 {[%emt 0:01:50]} 16. b3 {[%emt 0:02:27]} Rfe8 {[%emt 0:15:58]} 17. Rfd1 {[%emt 0:04:34]} Ne5 {[%emt 0:04:19] Mistake:       	---       	Black=1      Inaccurate:     	White=1     	---        OK:         	White=4     	Black=6} 18. Be3 {[%emt 0:02:09] Weighted Error Value: White=0.07 (flawless) /Black=0.16 (very precise)} *

[Event "AUT Bundesliga 2024-25"]
[Site "Austria"]
[Date "2025.04.05"]
[Round "10.20"]
[White "Pajeken, Jakob Leon"]
[Black "Michalik, Peter"]
[Result "*"]
[Annotator "TA"]
[ECO "D36"]
[WhiteElo "2435"]
[BlackElo "2563"]
[PlyCount "37"]
[EventDate "2024.08.28"]
[EventType "team-tourn"]
[EventCountry "AUT"]
[SourceTitle "playchess.com"]
[Source "ChessBase"]
[SourceQuality "1"]
[TimeControl "40/5400+30:1800+30"]

{[%evp 23,37,20,17,26,25,20,29,23,29,22,31,23,24,24,39,28]} 1. d4 {[%emt 0:00:20]} Nf6 {[%emt 0:00:06]} 2. Nf3 {[%emt 0:00:05]} e6 {[%emt 0:00:24]} 3. c4 {[%emt 0:00:05]} d5 {[%emt 1:31:30]} 4. Nc3 {[%emt 0:00:06]} h6 {[%emt 0:01:05]} 5. cxd5 {[%emt 0:00:29]} exd5 {[%emt 0:00:08]} 6. Bf4 {[%emt 0:00:14]} Bd6 {[%emt 0:00:09]} 7. Be5 {[%emt 1:32:41]} c6 {[%emt 0:02:07]} 8. e3 {[%emt 0:03:06]} Qe7 {[%emt 0:02:30]} 9. Bd3 {[%emt 0:01:48]} O-O {[%emt 0:02:39]} 10. Qc2 {[%emt 0:03:45]} Nbd7 {[%emt 0:05:44]} 11. Bxd6 {[%emt 0:00:08]} Qxd6 {[%emt 0:00:04]} 12. O-O {[%emt 0:01:09]} Re8 {[%emt 0:04:03]} 13. Rac1 {[%emt 0:10:23] D36: Queen's Gambit Declined: Exchange Variation: Main line (5 Bg5 c6 6 Qc2).} Qe7 {[%emt 0:02:08]} 14. Rfe1 {[%emt 0:05:26]} Ne4 {[%emt 0:00:32]} 15. Nd2 {[%emt 0:04:37] White has an edge.} Ndf6 {[%emt 0:00:52]} 16. f3 {[%emt 0:04:19]} Nxd2 {[%emt 0:00:23]} 17. Qxd2 {[%emt 0:00:08]} Be6 {[%emt 0:00:14]} 18. Bb1 $146 {[%emt 0:13:43]} (18. Rcd1 Rad8 19. Bc2 c5 20. dxc5 Qxc5 21. Qd4 Qa5 22. Ba4 Bd7 23. Bb3 Bc6 24. Re2 Rd7 25. Red2 Rde7 26. Nxd5 Nxd5 27. Bxd5 Bxd5 28. Qxd5 Qxd5 29. Rxd5 {½-½ Radzimski,A (2224)-Mouhamad,J (2269) Budapest SixDays 03 IM 2024 (6)}) 18... Red8 {[%emt 0:13:52] OK:         	White=1     	Black=2} 19. Qc2 {[%emt 0:05:04] Weighted Error Value: White=0.02 (flawless) /Black=0.04 (flawless)} *

[Event "AUT Bundesliga 2024-25"]
[Site "Austria"]
[Date "2025.04.05"]
[Round "10.21"]
[White "Lanka, Zigurds"]
[Black "Janzelj, Tim"]
[Result "1-0"]
[Annotator "RC"]
[ECO "A10"]
[WhiteElo "2326"]
[BlackElo "2404"]
[PlyCount "177"]
[EventDate "2024.08.28"]
[EventType "team-tourn"]
[EventCountry "AUT"]
[SourceTitle "playchess.com"]
[Source "ChessBase"]
[SourceQuality "1"]
[TimeControl "40/5400+30:1800+30"]

1. Nf3 {[%emt 0:00:05]} f5 {[%emt 0:00:07]} 2. g3 {[%emt 1:31:25]} Nf6 {[%emt 0:00:13]} 3. Bg2 {[%emt 0:00:00]} e6 {[%emt 0:01:13]} 4. c4 {[%emt 0:00:00]} d5 {[%emt 0:00:45]} 5. O-O {[%emt 0:00:00]} Bd6 {[%emt 0:01:20]} 6. d3 {[%emt 0:00:00]} O-O {[%emt 0:02:13]} 7. Nc3 {[%emt 0:00:00]} dxc4 {[%emt 0:00:54]} 8. dxc4 {[%emt 0:00:00]} Nc6 {[%emt 0:00:10]} 9. e4 {[%emt 0:00:00]} e5 {[%emt 0:08:10]} 10. exf5 {[%emt 0:00:00]} Bxf5 {[%emt 0:00:34]} 11. h3 {[%emt 0:00:00]} Bc5 {[%emt 0:07:58]} 12. Nd5 {[%emt 0:00:00]} Kh8 {[%emt 0:31:48]} 13. Nh4 {[%emt 0:00:00]} Be6 {[%emt 0:03:30]} 14. Be3 {[%emt 0:00:00]} Nd4 {[%emt 0:03:14]} 15. Rc1 {[%emt 0:00:00]} c6 {[%emt 0:03:32]} 16. Nxf6 {[%emt 0:00:00]} Qxf6 {[%emt 0:00:45]} 17. Kh1 {[%emt 0:00:00]} Rad8 {[%emt 0:13:28]} 18. Qh5 {[%emt 0:00:00]} Bf7 {[%emt 0:00:21]} 19. Qg4 {[%emt 0:00:00]} Ne6 {[%emt 0:05:44]} 20. Rcd1 {[%emt 0:00:00]} Bd4 {[%emt 0:02:40]} 21. b3 {[%emt 0:00:00]} a5 {[%emt 0:00:27]} 22. Bc1 {[%emt 0:00:00]} h5 {[%emt 0:01:51]} 23. Qf3 {[%emt 0:00:00]} Be8 {[%emt 0:02:10]} 24. Qxf6 {[%emt 0:00:00]} Rxf6 {[%emt 0:00:02]} 25. Nf3 {[%emt 0:00:00]} Bg6 {[%emt 0:00:49]} 26. Ba3 {[%emt 0:00:00]} Rf7 {[%emt 0:06:03]} 27. Rd2 {[%emt 0:00:00]} Be4 {[%emt 0:02:21]} 28. Nxd4 {[%emt 0:00:00]} Bxg2+ {[%emt 0:00:17]} 29. Kxg2 {[%emt 0:00:00]} Rxd4 {[%emt 0:01:10]} 30. Re2 {[%emt 0:00:12]} e4 {[%emt 0:00:27]} 31. Bb2 {[%emt 0:00:26]} Rd3 {[%emt 0:00:21]} 32. Rxe4 {[%emt 0:00:13]} Nf8 {[%emt 0:01:17]} 33. Rh4 {[%emt 0:02:18]} Kg8 {[%emt 0:00:32]} 34. Rxh5 {[%emt 0:00:39]} a4 {[%emt 0:00:07]} 35. bxa4 {[%emt 0:00:35]} Rd2 {[%emt 0:00:07]} 36. Bc1 {[%emt 0:02:56]} Rxa2 {[%emt 0:00:07]} 37. Ra5 {[%emt 0:01:27]} Nd7 {[%emt 0:00:43]} 38. Be3 {[%emt 0:00:40]} Nf6 {[%emt 0:00:41]} 39. Re5 {[%emt 0:02:47]} Rxa4 {[%emt 0:00:12]} 40. Rc1 {[%emt 0:00:16]} Nd7 {[%emt 0:00:39]} 41. Re6 {[%emt 0:31:31]} Ra2 {[%emt 0:30:49]} 42. g4 {[%emt 0:00:52]} Re2 {[%emt 0:00:00]} 43. Rd6 {[%emt 0:00:00]} Ne5 {[%emt 0:00:00]} 44. Rd4 {[%emt 0:00:00]} g5 {[%emt 0:00:00]} 45. Rcd1 {[%emt 0:00:00]} Kh7 {[%emt 0:00:00]} 46. c5 {[%emt 0:00:00]} Rc2 {[%emt 0:00:00]} 47. Rd8 {[%emt 0:00:00]} Nc4 {[%emt 0:00:00]} 48. Bd4 {[%emt 0:00:00]} Re2 {[%emt 0:00:00]} 49. Ra1 {[%emt 0:08:38]} Rf4 {[%emt 0:04:21]} 50. Ra7 {[%emt 0:00:00]} Re7 {[%emt 0:00:35]} 51. Raa8 {[%emt 0:00:00]} Ne5 {[%emt 0:00:33]} 52. Be3 {[%emt 0:00:00]} Ng6 {[%emt 0:00:29]} 53. Bxf4 {[%emt 0:00:00]} Nxf4+ {[%emt 0:00:01]} 54. Kf1 {[%emt 0:00:00]} Ng6 {[%emt 0:00:16]} 55. Ra7 {[%emt 0:00:00]} Kh6 {[%emt 0:00:33]} 56. Rb8 {[%emt 0:00:00]} Re5 {[%emt 0:00:19]} 57. Rbxb7 {[%emt 0:00:00]} Nf4 {[%emt 0:00:05]} 58. Rh7+ {[%emt 0:00:00]} Kg6 {[%emt 0:00:02]} 59. Rag7+ {[%emt 0:00:00]} Kf6 {[%emt 0:00:01]} 60. Rf7+ {[%emt 0:00:00]} Kg6 {[%emt 0:00:02]} 61. Rhg7+ {[%emt 0:00:00]} Kh6 {[%emt 0:00:02]} 62. h4 {[%emt 0:00:00]} gxh4 {[%emt 0:00:17]} 63. Rg8 {[%emt 0:00:00]} Nd3 {[%emt 0:04:33]} 64. Rf5 {[%emt 0:00:00]} Re1+ {[%emt 0:00:00]} 65. Kg2 {[%emt 0:00:00]} Kh7 {[%emt 0:00:00]} 66. Rd8 {[%emt 0:00:21]} Rd1 {[%emt 0:00:00]} 67. Rd6 {[%emt 0:01:20]} Kg7 {[%emt 0:00:00]} 68. Kh2 {[%emt 0:00:53]} Rd2 {[%emt 0:00:00]} 69. Rdf6 {[%emt 0:02:19]} Nxc5 {[%emt 0:00:00]} 70. Rxc6 {[%emt 0:01:53]} Ne4 {[%emt 0:00:00]} 71. Rc7+ {[%emt 0:00:09]} Kg6 {[%emt 0:00:00]} 72. Rcf7 {[%emt 0:00:30]} Rd1 {[%emt 0:03:55]} 73. Re7 {[%emt 0:01:13]} Ng5 {[%emt 0:00:28]} 74. Re8 {[%emt 0:00:35]} Kh6 {[%emt 0:00:30]} 75. Ree5 {[%emt 0:01:26]} Nh7 {[%emt 0:00:29]} 76. Rh5+ {[%emt 0:01:00]} Kg6 {[%emt 0:00:03]} 77. Re6+ {[%emt 0:00:21]} Kf7 {[%emt 0:00:02]} 78. Ra6 {[%emt 0:00:25]} Nf8 {[%emt 0:00:09]} 79. Rxh4 {[%emt 0:00:30]} Rd7 {[%emt 0:00:50]} 80. Rh5 {[%emt 0:00:24]} Kg7 {[%emt 0:00:12]} 81. Rg5+ {[%emt 0:00:19]} Kf7 {[%emt 0:00:14]} 82. Rga5 {[%emt 0:00:20]} Rd2 {[%emt 0:00:12]} 83. Rf5+ {[%emt 0:00:15]} Ke7 {[%emt 0:00:08]} 84. Kg3 {[%emt 0:00:26]} Nd7 {[%emt 0:00:07]} 85. g5 {[%emt 0:00:23]} Rd1 {[%emt 0:00:11]} 86. g6 {[%emt 0:00:53]} Nb8 {[%emt 0:00:40]} 87. Rf7+ {[%emt 0:00:47]} Ke8 {[%emt 0:00:06]} 88. Re6+ {[%emt 0:00:08]} Kd8 {[%emt 0:00:05]} 89. g7 {[%emt 0:00:34]} 1-0

[Event "AUT Bundesliga 2024-25"]
[Site "Austria"]
[Date "2025.04.05"]
[Round "10.22"]
[White "Sebenik, Matej"]
[Black "Maiwald, Jens-Uwe"]
[Result "*"]
[Annotator "TA"]
[ECO "E52"]
[WhiteElo "2491"]
[BlackElo "2423"]
[PlyCount "36"]
[EventDate "2024.08.28"]
[EventType "team-tourn"]
[EventCountry "AUT"]
[SourceTitle "playchess.com"]
[Source "ChessBase"]
[SourceQuality "1"]
[TimeControl "40/5400+30:1800+30"]

{[%evp 20,36,18,-2,0,0,16,12,18,34,39,19,86,87,79,0,0,0,0]} 1. d4 {[%emt 0:00:06]} Nf6 {[%emt 0:00:32]} 2. c4 {[%emt 0:00:21]} e6 {[%emt 0:00:10]} 3. Nc3 {[%emt 0:00:11]} Bb4 {[%emt 0:00:10]} 4. Nf3 {[%emt 0:00:07]} b6 {[%emt 1:31:38]} 5. e3 {[%emt 0:00:28]} Bb7 {[%emt 0:00:26]} 6. Bd3 {[%emt 0:00:33]} O-O {[%emt 1:31:18]} 7. O-O {[%emt 0:00:07]} d5 {[%emt 0:03:25]} 8. cxd5 {[%emt 0:01:16]} exd5 {[%emt 0:00:09]} 9. Ne5 {[%emt 1:31:51]} Bd6 {[%emt 0:03:12] is recently more successful than 9...Nbd7.} 10. f4 {[%emt 0:01:30][%cal Bf2f4,Bf4e5][%mdl 32]} c5 {[%emt 1:22:37]} 11. Qf3 {[%emt 1:31:12]} Nc6 {[%emt 0:02:28][%cal Bb8c6,Bc6b4,Bb4a6][%mdl 32] E52: Nimzo-Indian: Rubinstein: 4...0-0 5 Nf3 d5 6 Bd3 b6.} 12. Qh3 {[%emt 0:00:05][%cal Oc3d5] [#] and Nxd5! should not be overlooked} Nb4 {[%emt 0:15:32] A sharp opening} 13. Bb1 {[%emt 0:03:44]} Ne4 {[%emt 0:00:48]} 14. dxc5 $146 {[%emt 0:22:22]} (14. a3 $5 Na6 $8 15. Ba2 $11) (14. a3 Na6 15. b3 Nc7 16. Bb2 cxd4 17. exd4 f5 18. b4 Rc8 19. Nd1 Ne6 20. Ne3 {0-1 Letic,S-Miettinen,R FIN jub10-A corr7174 1971}) 14... Bxe5 {[%emt 0:05:01] Black sacrificed a pawn} 15. fxe5 {[%emt 0:00:11]} Qe7 {[%emt 0:00:45]} (15... bxc5 $11 16. Rd1 Bc8) 16. a3 $16 {[%emt 0:16:32]} Na6 {[%emt 0:00:19] [#]} 17. b4 {[%emt 0:18:49]} bxc5 $1 $11 {[%emt 0:03:26]} 18. Bb2 {[%emt 0:00:23] Mistake:       	White=1     	Black=1      OK:         	White=5     	Black=3      Strong:       	---       	Black=1} cxb4 {[%emt 0:07:39] Weighted Error Value: White=0.15 (very precise) /Black=0.14 (very precise)} *

[Event "AUT Bundesliga 2024-25"]
[Site "Austria"]
[Date "2025.04.05"]
[Round "10.24"]
[White "Diermair, Andreas"]
[Black "Tabernig, Bernhard"]
[Result "1-0"]
[Annotator "RC"]
[ECO "A06"]
[WhiteElo "2445"]
[BlackElo "2262"]
[PlyCount "81"]
[EventDate "2024.08.28"]
[EventType "team-tourn"]
[EventCountry "AUT"]
[SourceTitle "playchess.com"]
[Source "ChessBase"]
[SourceQuality "1"]
[TimeControl "40/5400+30:1800+30"]

1. Nf3 {[%emt 0:00:03]} d5 {[%emt 0:00:13]} 2. e3 {[%emt 0:00:33]} c5 {[%emt 0:06:06]} 3. b3 {[%emt 0:01:00]} Nc6 {[%emt 0:00:34]} 4. Bb2 {[%emt 0:00:31]} Nf6 {[%emt 0:00:31]} 5. Bb5 {[%emt 0:03:46]} e6 {[%emt 0:00:56]} 6. Ne5 {[%emt 0:02:21]} Qc7 {[%emt 0:00:41]} 7. O-O {[%emt 0:01:34]} Bd6 {[%emt 0:02:47]} 8. f4 {[%emt 0:00:50]} Bd7 {[%emt 0:11:08]} 9. Ng4 {[%emt 0:09:38]} d4 {[%emt 0:09:35]} 10. Na3 {[%emt 0:04:38]} h5 {[%emt 0:05:03]} 11. Nxf6+ {[%emt 0:07:20]} gxf6 {[%emt 0:00:09]} 12. Be2 {[%emt 0:06:01]} a6 {[%emt 0:02:08]} 13. Nc4 {[%emt 0:01:25]} h4 {[%emt 0:05:19]} 14. c3 {[%emt 0:08:58]} b5 {[%emt 0:09:12]} 15. Nxd6+ {[%emt 0:00:16]} Qxd6 {[%emt 0:00:06]} 16. cxd4 {[%emt 0:00:11]} cxd4 {[%emt 0:00:23]} 17. Bf3 {[%emt 0:01:27]} Rc8 {[%emt 0:01:56]} 18. Rc1 {[%emt 0:01:09]} Ke7 {[%emt 0:06:53]} 19. a3 {[%emt 0:00:36]} e5 {[%emt 0:02:01]} 20. b4 {[%emt 0:01:39]} a5 {[%emt 0:13:26]} 21. bxa5 {[%emt 0:01:24]} Nxa5 {[%emt 0:00:13]} 22. Rxc8 {[%emt 0:02:02]} Rxc8 {[%emt 0:00:39]} 23. fxe5 {[%emt 0:00:34]} fxe5 {[%emt 0:00:21]} 24. exd4 {[%emt 0:00:32]} Nc4 {[%emt 0:00:45]} 25. Bc3 {[%emt 0:04:06]} Ne3 {[%emt 0:07:05]} 26. dxe5 {[%emt 0:10:08]} Qxa3 {[%emt 0:02:21]} 27. dxe3 {[%emt 0:05:26]} Rxc3 {[%emt 0:00:10]} 28. Bd5 {[%emt 0:00:47]} Be8 {[%emt 0:01:09]} 29. Qe1 {[%emt 0:08:48]} Qc5 {[%emt 0:05:40]} 30. Qxh4+ {[%emt 0:00:29]} Kd7 {[%emt 0:01:01]} 31. Qd4 {[%emt 0:04:51]} Ke7 {[%emt 0:00:34]} 32. Qxc5+ {[%emt 0:02:24]} Rxc5 {[%emt 0:00:01]} 33. e4 {[%emt 0:00:07]} b4 {[%emt 0:00:42]} 34. h4 {[%emt 0:00:18]} Bc6 {[%emt 0:01:05]} 35. Rxf7+ {[%emt 0:01:14]} Kd8 {[%emt 0:03:24]} 36. e6 {[%emt 0:05:23]} Bxd5 {[%emt 0:00:31]} 37. exd5 {[%emt 0:00:12]} Rxd5 {[%emt 0:00:06]} 38. Rb7 {[%emt 0:00:12]} Rd4 {[%emt 0:00:24]} 39. g3 {[%emt 0:00:38]} Kc8 {[%emt 0:01:45]} 40. e7 {[%emt 0:00:33]} Re4 {[%emt 0:00:15]} 41. Rxb4 {[%emt 0:30:37]} 1-0